fUSD/lending_fUSD_20240502
["ID","MTS","AMOUNT","RATE_DAILY","PERIOD"]
[325295488,1714684271506,-11807.03,0.00030684,2]
[325295489,1714684271515,-500.0,0.00030684,2]
[325295490,1714684271524,-500.0,0.00030684,2]
[325295491,1714684271534,-500.0,0.00030684,2]
[325295492,1714684271543,-500.0,0.00030684,2]
[325295493,1714684271553,-29260.29,0.00030684,2]
[325295494,1714684271562,-1142.27,0.00030684,2]
[325295495,1714684271571,-500.0,0.00030684,2]
[325295496,1714684271585,-655.55,0.00030684,2]
[325295497,1714684271602,-839.82,0.00030684,2]
[325295498,1714684271619,-770.43,0.00030684,2]
[325295499,1714684271633,-500.0,0.00030684,2]
[325295500,1714684271648,-500.0,0.00030684,2]
[325295501,1714684271663,-500.0,0.00030684,2]
[325295502,1714684271679,-151.0,0.00030684,7]
[325295503,1714684271696,-500.0,0.00030684,2]
[325295504,1714684271712,-500.0,0.00030684,2]
[325295505,1714684271726,-191.62378352,0.00030684,2]
[325295506,1714684271742,-500.0,0.00030684,2]
[325295507,1714684271757,-500.0,0.00030684,2]
[325295508,1714684271768,-1040.3,0.00030684,2]
[325295509,1714684271781,-500.0,0.00030684,2]
[325295510,1714684271797,-500.0,0.00030684,2]
[325295511,1714684271811,-500.0,0.00030684,2]
[325295512,1714684271827,-2056.82,0.00030684,2]
[325295513,1714684271842,-1224.81,0.00030684,2]
[325295514,1714684271853,-500.0,0.00030684,2]
[325295515,1714684271864,-2541.51,0.00030684,2]
[325295516,1714684271879,-3036.22,0.00030684,2]
[325295517,1714684271894,-500.0,0.00030684,2]
[325295518,1714684271905,-939.71,0.00030684,2]
[325295519,1714684271919,-255.53084798,0.00030684,2]
[325295520,1714684271932,-1104.75,0.00030684,2]
[325295521,1714684271943,-500.0,0.00030684,2]
[325295522,1714684271956,-500.0,0.00030684,2]
[325295523,1714684271968,-1776.84,0.00030684,2]
[325295524,1714684271981,-500.0,0.00030684,2]
[325295525,1714684271993,-500.0,0.00030684,2]
[325295526,1714684272006,-500.0,0.00030684,2]
[325295527,1714684272019,-151.0,0.00030684,7]
[325295528,1714684272033,-500.0,0.00030684,2]
[325295529,1714684272046,-500.0,0.00030684,2]
[325295530,1714684272058,-500.0,0.00030684,2]
[325295531,1714684272071,-500.0,0.00030684,2]
[325295532,1714684272084,-500.0,0.00030684,2]
[325295533,1714684272096,-1450.08,0.00030684,2]
[325295534,1714684272109,-1188.0,0.00030684,2]
[325295535,1714684272122,-1462.34,0.00030684,2]
[325295536,1714684272138,-2815.35,0.00030684,2]
[325295537,1714684272156,-500.0,0.00030684,2]
[325295538,1714684272171,-500.0,0.00030684,2]
[325295539,1714684272184,-500.0,0.00030684,2]
[325295540,1714684272196,-500.0,0.00030684,2]
[325295541,1714684272211,-1673.43,0.00030684,2]
[325295542,1714684272223,-1048.02,0.00030684,2]
[325295543,1714684272235,-860.55,0.00030684,2]
[325295544,1714684272248,-151.0,0.00030684,7]
[325295545,1714684272261,-151.347712,0.00030684,7]
[325295546,1714684272273,-1390.61,0.00030684,2]
[325295547,1714684272285,-500.0,0.00030684,2]
[325295548,1714684272298,-2317.45,0.00030684,2]
[325295549,1714684272310,-500.0,0.00030684,2]
[325295550,1714684272322,-1301.69,0.00030684,2]
[325295551,1714684272335,-500.0,0.00030684,2]
[325295552,1714684272348,-500.0,0.00030684,2]
[325295553,1714684272360,-500.0,0.00030684,2]
[325295554,1714684272373,-500.0,0.00030684,2]
[325295555,1714684272385,-151.0,0.00030684,7]
[325295556,1714684272397,-500.0,0.00030684,2]
[325295557,1714684272410,-500.0,0.00030684,2]
[325295558,1714684272422,-500.0,0.00030684,2]
[325295559,1714684272434,-500.0,0.00030684,2]
[325295560,1714684272447,-500.0,0.00030684,2]
[325295561,1714684272459,-500.0,0.00030684,2]
[325295562,1714684272473,-4687.82,0.00030684,2]
[325295563,1714684272485,-500.0,0.00030684,2]
[325295564,1714684272497,-500.0,0.00030684,2]
[325295565,1714684272509,-6272.25,0.00030684,2]
[325295566,1714684272522,-40313.35,0.00030684,2]
[325295567,1714684272534,-503.61939615,0.00030684,2]
[325295568,1714684272547,-569.45,0.00030684,2]
[325295569,1714684272559,-500.0,0.00030684,2]
[325295570,1714684272572,-500.0,0.00030684,2]
[325295571,1714684272584,-1530.93,0.00030684,2]
[325295572,1714684272596,-569.61,0.00030684,2]
[325295573,1714684272609,-500.0,0.00030684,2]
[325295574,1714684272621,-500.0,0.00030684,2]
[325295575,1714684272634,-860.79,0.00030684,2]
[325295576,1714684272645,-503.36,0.00030684,2]
[325295577,1714684272657,-500.0,0.00030684,2]
[325295578,1714684272670,-500.0,0.00030684,2]
[325295579,1714684272682,-1201.32,0.00030684,2]
[325295580,1714684272694,-2950.46,0.00030684,2]
[325295581,1714684272707,-741.29,0.00030684,2]
[325295582,1714684272718,-2366.76,0.00030684,2]
[325295583,1714684272730,-500.0,0.00030684,2]
[325295584,1714684272742,-1295.57,0.00030684,2]
[325295585,1714684272755,-500.0,0.00030684,2]
[325295586,1714684272768,-2511.05,0.00030684,2]
[325295587,1714684272779,-9131.57,0.00030684,2]
[325295588,1714684272792,-1248.2,0.00030684,2]
[325295589,1714684272804,-813.38,0.00030684,2]
[325295590,1714684272817,-1330.29,0.00030684,2]
[325295591,1714684272828,-500.0,0.00030684,2]
[325295592,1714684272841,-968.45,0.00030684,2]
[325295593,1714684272853,-1699.42,0.00030684,2]
[325295594,1714684272865,-17863.75,0.00030684,2]
[325295595,1714684272877,-500.0,0.00030684,2]
[325295596,1714684272889,-2198.26,0.00030684,2]
[325295597,1714684272901,-545.48,0.00030684,2]
[325295598,1714684272913,-500.0,0.00030684,2]
[325295599,1714684272925,-1039.11,0.00030684,2]
[325295600,1714684272938,-1442.85,0.00030684,2]
[325295601,1714684272950,-1325.64,0.00030684,2]
[325295602,1714684272962,-500.0,0.00030684,2]
[325295603,1714684272974,-614.45,0.00030684,2]
[325295604,1714684272985,-13308.57,0.00030684,2]
[325295605,1714684272998,-1287.73,0.00030684,2]
[325295606,1714684273010,-151.0,0.00030684,7]
[325295607,1714684273022,-10866.31,0.00030684,2]
[325295608,1714684273035,-500.0,0.00030684,2]
[325295609,1714684273047,-2056.82,0.00030684,2]
[325295610,1714684273059,-500.0,0.00030684,2]
[325295611,1714684273071,-500.0,0.00030684,2]
[325295612,1714684273083,-7164.57,0.00030684,2]
[325295613,1714684273096,-162.71601414,0.00030684,2]
[325295614,1714684273108,-500.0,0.00030684,2]
[325295615,1714684273120,-500.0,0.00030684,2]
[325295616,1714684273134,-500.0,0.00030684,2]
[325295617,1714684273147,-500.0,0.00030684,2]
[325295618,1714684273160,-500.0,0.00030684,2]
[325295619,1714684273173,-500.0,0.00030684,2]
[325295620,1714684273185,-3362.13,0.00030684,2]
[325295621,1714684273198,-605.84,0.00030684,2]
[325295622,1714684273211,-1390.14,0.00030684,2]
[325295623,1714684273223,-4267.61,0.00030684,2]
[325295624,1714684273235,-1557.08,0.00030684,2]
[325295625,1714684273247,-151.0,0.00030684,7]
[325295626,1714684273259,-1070.08,0.00030684,2]
[325295627,1714684273271,-2777.11,0.00030684,2]
[325295628,1714684273283,-589.67,0.00030684,2]
[325295629,1714684273296,-994.43,0.00030684,2]
[325295630,1714684273308,-500.0,0.00030684,2]
[325295631,1714684273321,-3654.85,0.00030684,2]
[325295632,1714684273333,-500.0,0.00030684,2]
[325295633,1714684273345,-500.0,0.00030684,2]
[325295634,1714684273357,-151.0,0.00030684,7]
[325295635,1714684273369,-522.59,0.00030684,2]
[325295636,1714684273381,-2159.8,0.00030684,2]
[325295637,1714684273392,-2547.27,0.00030684,2]
[325295638,1714684273404,-151.542137,0.00030684,7]
[325295639,1714684273416,-861.29,0.00030684,2]
[325295640,1714684273428,-1115.28,0.00030684,2]
[325295641,1714684273440,-5133.36,0.00030684,2]
[325295642,1714684273452,-1312.13,0.00030684,2]
[325295643,1714684273464,-994.89,0.00030684,2]
[325295644,1714684273476,-1788.75,0.00030684,2]
[325295645,1714684273489,-595.07,0.00030684,2]
[325295646,1714684273501,-151.0,0.00030684,7]
[325295647,1714684273514,-500.0,0.00030684,2]
[325295648,1714684273525,-570.36724221,0.00030684,2]
[325295649,1714684273534,-552.07,0.00030684,2]
[325295650,1714684273544,-3112.16,0.00030684,2]
[325295651,1714684273553,-500.0,0.00030684,2]
[325295652,1714684273562,-500.0,0.00030684,2]
[325295653,1714684273572,-500.0,0.00030684,2]
[325295654,1714684273581,-1325.11,0.00030684,2]
[325295655,1714684273590,-2398.96,0.00030684,2]
[325295656,1714684273599,-743.56,0.00030684,2]
[325295657,1714684273609,-500.0,0.00030684,2]
[325295658,1714684273618,-721.07,0.00030684,2]
[325295659,1714684273627,-2595.86,0.00030684,2]
[325295660,1714684273636,-21906.74,0.00030684,2]
[325295661,1714684273646,-6661.19,0.00030684,2]
[325295662,1714684273656,-2515.48,0.00030684,2]
[325295663,1714684273665,-5657.08,0.00030684,2]
[325295664,1714684273675,-500.0,0.00030684,2]
[325295665,1714684273684,-500.0,0.00030684,2]
[325295666,1714684273693,-504.52,0.00030684,2]
[325295667,1714684273702,-151.0,0.00030684,7]
[325295668,1714684273712,-1525.1,0.00030684,2]
[325295669,1714684273721,-3556.58,0.00030684,2]
[325295670,1714684273730,-500.0,0.00030684,2]
[325295671,1714684273740,-193.06653,0.00030684,7]
[325295672,1714684273749,-1264.5,0.00030684,2]
[325295673,1714684273760,-3148.59,0.00030684,2]
[325295674,1714684273769,-1333.64,0.00030684,2]
[325295675,1714684273779,-2577.5,0.00030684,2]
[325295676,1714684273788,-2594.17,0.00030684,2]
[325295677,1714684273800,-1173.51,0.00030684,2]
[325295678,1714684273811,-6397.57,0.00030684,2]
[325295679,1714684273823,-10831.97,0.00030684,2]
[325295680,1714684273833,-500.0,0.00030684,2]
[325295681,1714684273843,-500.0,0.00030684,2]
[325295682,1714684273854,-2060.58,0.00030684,2]
[325295683,1714684273863,-5018.06,0.00030684,2]
[325295684,1714684273872,-817.74,0.00030684,2]
[325295685,1714684273884,-500.0,0.00030684,2]
[325295686,1714684273893,-500.0,0.00030684,2]
[325295687,1714684273904,-950.94,0.00030684,2]
[325295688,1714684273913,-500.0,0.00030684,2]
[325295689,1714684273923,-1239.93,0.00030684,2]
[325295690,1714684273932,-2591.06,0.00030684,2]
[325295691,1714684273942,-500.0,0.00030684,2]
[325295692,1714684273952,-1104.14,0.00030684,2]
[325295693,1714684273962,-1334.0,0.00030684,2]
[325295694,1714684273971,-438.612677,0.00030684,7]
[325295695,1714684273980,-500.0,0.00030684,2]
[325295696,1714684273990,-2156.62,0.00030684,2]
[325295697,1714684273999,-1694.93,0.00030684,2]
[325295698,1714684274008,-500.0,0.00030684,2]
[325295699,1714684274018,-500.0,0.00030684,2]
[325295700,1714684274028,-57620.15,0.00030684,2]
[325295701,1714684274037,-2873.92,0.00030684,2]
[325295702,1714684274048,-438.612677,0.00030684,7]
[325295703,1714684274058,-1315.37,0.00030684,2]
[325295704,1714684274067,-4749.79,0.00030684,2]
[325295705,1714684274076,-500.0,0.00030684,2]
[325295706,1714684274086,-12678.83,0.00030684,2]
[325295707,1714684274095,-769.23,0.00030684,2]
[325295708,1714684274666,-1475.49,0.00030684,2]
[325295709,1714684274686,-1054.21,0.00030684,2]
[325295710,1714684274708,-4076.92,0.00030684,2]
[325295711,1714684274730,-3131.82,0.00030684,2]
[325295712,1714684274751,-500.0,0.00030684,2]
[325295713,1714684274762,-1246.08,0.00030684,2]
[325295714,1714684274772,-500.0,0.00030684,2]
[325295715,1714684274781,-500.0,0.00030684,2]
[325295716,1714684274791,-20884.38,0.00030684,2]
[325295717,1714684274803,-500.0,0.00030684,2]
[325295718,1714684274813,-500.0,0.00030684,2]
[325295719,1714684274824,-2340.19,0.00030684,2]
[325295720,1714684274833,-500.0,0.00030684,2]
[325295721,1714684274844,-500.0,0.00030684,2]
[325295722,1714684274854,-837.58,0.00030684,2]
[325295723,1714684274864,-5183.92,0.00030684,2]
[325295724,1714684274873,-2641.82,0.00030684,2]
[325295725,1714684274884,-19728.02,0.00030684,2]
[325295726,1714684274894,-500.0,0.00030684,2]
[325295727,1714684274904,-1686.28,0.00030684,2]
[325295728,1714684274913,-530.48,0.00030684,2]
[325295729,1714684274922,-151.835124,0.00030684,7]
[325295730,1714684274931,-500.0,0.00030684,2]
[325295731,1714684274940,-6726.05,0.00030684,2]
[325295732,1714684274949,-642.7,0.00030684,2]
[325295733,1714684274958,-500.0,0.00030684,2]
[325295734,1714684274968,-14013.91,0.00030684,2]
[325295735,1714684274976,-1575.24,0.00030684,2]
[325295736,1714684274986,-896.64,0.00030684,2]
[325295737,1714684274995,-151.835124,0.00030684,7]
[325295738,1714684275004,-2789.55,0.00030684,2]
[325295739,1714684275013,-852.65,0.00030684,2]
[325295740,1714684275023,-1921.25,0.00030684,2]
[325295741,1714684275032,-1384.99,0.00030684,2]
[325295742,1714684275041,-500.0,0.00030684,2]
[325295743,1714684275051,-2313.4,0.00030684,2]
[325295744,1714684275060,-4197.63,0.00030684,2]
[325295745,1714684275069,-1775.28,0.00030684,2]
[325295746,1714684275078,-3054.57,0.00030684,2]
[325295747,1714684275087,-500.0,0.00030684,2]
[325295748,1714684275096,-1575.19,0.00030684,2]
[325295749,1714684275105,-1682.62,0.00030684,2]
[325295750,1714684275115,-588.14,0.00030684,2]
[325295751,1714684275124,-500.0,0.00030684,2]
[325295752,1714684275136,-3388.56,0.00030684,2]
[325295753,1714684275145,-3314.56,0.00030684,2]
[325295754,1714684275154,-2102.79,0.00030684,2]
[325295755,1714684275165,-10404.51,0.00030684,2]
[325295756,1714684275176,-500.0,0.00030684,2]
[325295757,1714684275185,-500.0,0.00030684,2]
[325295758,1714684275195,-971.82,0.00030684,2]
[325295759,1714684275204,-2060.94,0.00030684,2]
[325295760,1714684275217,-500.0,0.00030684,2]
[325295761,1714684275227,-1318.59,0.00030684,2]
[325295762,1714684275236,-500.0,0.00030684,2]
[325295763,1714684275245,-5491.48,0.00030684,2]
[325295764,1714684275255,-500.0,0.00030684,2]
[325295765,1714684275265,-500.0,0.00030684,2]
[325295766,1714684275274,-500.0,0.00030684,2]
[325295767,1714684275284,-500.0,0.00030684,2]
[325295768,1714684275294,-6202.73,0.00030684,2]
[325295769,1714684275304,-3249.96,0.00030684,2]
[325295770,1714684275314,-500.0,0.00030684,2]
[325295771,1714684275324,-715.07,0.00030684,2]
[325295772,1714684275334,-4710.19,0.00030684,2]
[325295773,1714684275344,-507.95,0.00030684,2]
[325295774,1714684275353,-500.0,0.00030684,2]
[325295775,1714684275363,-1897.9,0.00030684,2]
[325295776,1714684275372,-8445.41,0.00030684,2]
[325295777,1714684275382,-2085.21,0.00030684,2]
[325295778,1714684275391,-1665.31,0.00030684,2]
[325295779,1714684275401,-548.09723991,0.00030684,2]
[325295780,1714684275410,-845.06,0.00030684,2]
[325295781,1714684275420,-5611.82,0.00030684,2]
[325295782,1714684275429,-4509.18,0.00030684,2]
[325295783,1714684275439,-500.0,0.00030684,2]
[325295784,1714684275448,-2391.39,0.00030684,2]
[325295785,1714684275458,-3469.21,0.00030684,2]
[325295786,1714684275467,-2589.12,0.00030684,2]
[325295787,1714684275477,-3788.91,0.00030684,2]
[325295788,1714684275487,-2804.77,0.00030684,2]
[325295789,1714684275496,-1697.02,0.00030684,2]
[325295790,1714684275507,-500.0,0.00030684,2]
[325295791,1714684275516,-500.0,0.00030684,2]
[325295792,1714684275525,-500.0,0.00030684,2]
[325295793,1714684275534,-1613.25,0.00030684,2]
[325295794,1714684275544,-151.0,0.00030684,7]
[325295795,1714684275554,-594.72,0.00030684,2]
[325295796,1714684275565,-1719.81,0.00030684,2]
[325295797,1714684275574,-500.0,0.00030684,2]
[325295798,1714684275583,-1650.54,0.00030684,2]
[325295799,1714684275592,-566.44,0.00030684,2]
[325295800,1714684275602,-547.13,0.00030684,2]
[325295801,1714684275611,-500.0,0.00030684,2]
[325295802,1714684275621,-151.0,0.00030684,7]
[325295803,1714684275630,-2894.48,0.00030684,2]
[325295804,1714684275640,-1943.65,0.00030684,2]
[325295805,1714684275649,-500.0,0.00030684,2]
[325295806,1714684275658,-412.489962,0.00030684,7]
[325295807,1714684275668,-500.0,0.00030684,2]
[325295808,1714684275677,-1664.07,0.00030684,2]
[325295809,1714684275687,-500.0,0.00030684,2]
[325295810,1714684275696,-1177.55,0.00030684,2]
[325295811,1714684275705,-519.95,0.00030684,2]
[325295812,1714684275714,-500.0,0.00030684,2]
[325295813,1714684275723,-1170.56,0.00030684,2]
[325295814,1714684275732,-151.0,0.00030684,7]
[325295815,1714684275742,-571.78,0.00030684,2]
[325295816,1714684275751,-996.19,0.00030684,2]
[325295817,1714684275760,-412.489962,0.00030684,7]
[325295818,1714684275770,-4100.76,0.00030684,2]
[325295819,1714684275779,-500.0,0.00030684,2]
[325295820,1714684275788,-6428.66,0.00030684,2]
[325295821,1714684275799,-11194.18,0.00030684,2]
[325295822,1714684275809,-816.41,0.00030684,2]
[325295823,1714684275818,-8375.07,0.00030684,2]
[325295824,1714684275827,-1879.48,0.00030684,2]
[325295825,1714684275836,-151.0,0.00030684,7]
[325295826,1714684275845,-1536.35,0.00030684,2]
[325295827,1714684275855,-500.0,0.00030684,2]
[325295828,1714684275864,-500.0,0.00030684,2]
[325295829,1714684275874,-2627.37,0.00030684,2]
[325295830,1714684275884,-502.46337668,0.00030684,2]
[325295831,1714684275894,-500.0,0.00030684,2]
[325295832,1714684275904,-1806.57,0.00030684,2]
[325295833,1714684275914,-3341.51,0.00030684,2]
[325295834,1714684275923,-1783.89,0.00030684,2]
[325295835,1714684275933,-500.0,0.00030684,2]
[325295836,1714684275943,-500.0,0.00030684,2]
[325295837,1714684275952,-441.43519819,0.00030684,2]
[325295838,1714684275961,-500.0,0.00030684,2]
[325295839,1714684275972,-3805.83,0.00030684,2]
[325295840,1714684275982,-10844.54,0.00030684,2]
[325295841,1714684275992,-500.0,0.00030684,2]
[325295842,1714684276001,-500.0,0.00030684,2]
[325295843,1714684276010,-554.45,0.00030684,2]
[325295844,1714684276019,-1728.19,0.00030684,2]
[325295845,1714684276028,-1300.93,0.00030684,2]
[325295846,1714684276037,-500.0,0.00030684,2]
[325295847,1714684276046,-881.7,0.00030684,2]
[325295848,1714684276055,-2279.31,0.00030684,2]
[325295849,1714684276065,-641.35455862,0.00030684,2]
[325295850,1714684276074,-151.0,0.00030684,7]
[325295851,1714684276084,-2208.53,0.00030684,2]
[325295852,1714684276093,-535.56,0.00030684,2]
[325295853,1714684276102,-2457.38,0.00030684,2]
[325295854,1714684276112,-43460.75,0.00030684,2]
[325295855,1714684276121,-500.0,0.00030684,2]
[325295856,1714684276130,-1513.53,0.00030684,2]
[325295857,1714684276143,-1455.02,0.00030684,2]
[325295858,1714684276152,-500.0,0.00030684,2]
[325295859,1714684276161,-2664.07,0.00030684,2]
[325295860,1714684276174,-8283.65,0.00030684,2]
[325295861,1714684276183,-2244.44,0.00030684,2]
[325295862,1714684276193,-500.0,0.00030684,2]
[325295863,1714684276202,-151.0,0.00030684,7]
[325295864,1714684276214,-2695.86,0.00030684,2]
[325295865,1714684276223,-1646.31,0.00030684,2]
[325295866,1714684276233,-500.0,0.00030684,2]
[325295867,1714684276242,-500.0,0.00030684,2]
[325295868,1714684276252,-1229.28,0.00030684,2]
[325295869,1714684276261,-500.0,0.00030684,2]
[325295870,1714684276271,-4480.03,0.00030684,2]
[325295871,1714684276280,-510.3,0.00030684,2]
[325295872,1714684276289,-2068.41,0.00030684,2]
[325295873,1714684276299,-1400.25,0.00030684,2]
[325295874,1714684276309,-1703.81,0.00030684,2]
[325295875,1714684276318,-1095.21,0.00030684,2]
[325295876,1714684276328,-500.0,0.00030684,2]
[325295877,1714684276337,-3266.49,0.00030684,2]
[325295878,1714684276347,-709.28,0.00030684,2]
[325295879,1714684276356,-500.0,0.00030684,2]
[325295880,1714684276366,-2083.85,0.00030684,2]
[325295881,1714684276375,-758.061316,0.00030685,14]
[325295882,1714684276385,-403.71365,0.0003069,2]
[325295883,1714684276394,-157.050306,0.00030698,4]
[325295884,1714684276403,-157.050306,0.00030698,6]
[325295885,1714684276413,-157.050306,0.00030698,10]
[325295886,1714684276422,-157.050306,0.00030698,12]
[325295887,1714684276432,-157.050306,0.00030748,12]
[325295888,1714684276441,-157.050306,0.00030748,10]
[325295889,1714684276451,-157.050306,0.00030748,6]
[325295890,1714684276460,-157.050306,0.00030748,4]
[325295891,1714684276469,-157.050306,0.00030798,12]
[325295892,1714684276478,-157.050306,0.00030798,10]
[325295893,1714684276488,-157.050306,0.00030798,6]
[325295894,1714684276497,-157.050306,0.00030798,4]
[325295895,1714684276506,-352.0,0.000308,2]
[325295896,1714684276515,-1000.0,0.000308,2]
[325295897,1714684276524,-223.0,0.000308,2]
[325295898,1714684276534,-150.0,0.00030801,2]
[325295899,1714684276543,-150.0,0.00030818,2]
[325295900,1714684276553,-157.050306,0.00030848,4]
[325295901,1714684276562,-157.050306,0.00030848,6]
[325295902,1714684276571,-157.050306,0.00030848,10]
[325295903,1714684276581,-157.050306,0.00030848,12]
[325295904,1714684276590,-286.0,0.0003089,29]
[325295905,1714684276599,-157.050306,0.00030898,4]
[325295906,1714684276609,-157.050306,0.00030898,6]
[325295907,1714684276618,-157.050306,0.00030898,10]
[325295908,1714684276627,-157.050306,0.00030898,12]
[325295909,1714684276637,-5707.9215,0.000309,2]
[325295910,1714684276646,-342.46738538,0.000309,2]
[325295911,1714684276655,-150.0,0.000309,6]
[325295912,1714684276664,-158.15323034,0.00030901,7]
[325295913,1714684276673,-157.050306,0.00030948,12]
[325295914,1714684276682,-157.050306,0.00030948,10]
[325295915,1714684276691,-157.050306,0.00030948,6]
[325295916,1714684276700,-157.050306,0.00030948,4]
[325295917,1714684276709,-713.69,0.00030957,4]
[325295918,1714684276718,-4749.91204624,0.00030958,2]
[325295919,1714684276727,-500.0,0.00030958,2]
[325295920,1714684276737,-270.01287744,0.00030958,2]
[325295921,1714684276746,-500.0,0.00030958,2]
[325295922,1714684276755,-500.0,0.00030958,2]
[325295923,1714684276764,-851.85,0.00030958,2]
[325295924,1714684276773,-500.0,0.00030958,2]
[325295925,1714684276783,-500.0,0.00030958,2]
[325295926,1714684276792,-947.66,0.00030958,2]
[325295927,1714684276802,-500.0,0.00030958,2]
[325295928,1714684276811,-515.92854208,0.00030958,2]
[325295929,1714684276821,-500.0,0.00030958,2]
[325295930,1714684276830,-500.0,0.00030958,2]
[325295931,1714684276839,-500.0,0.00030958,2]
[325295932,1714684276848,-500.0,0.00030958,2]
[325295933,1714684276858,-500.0,0.00030958,2]
[325295934,1714684276867,-500.0,0.00030958,2]
[325295935,1714684276875,-500.0,0.00030958,2]
[325295936,1714684276885,-500.0,0.00030958,2]
[325295937,1714684276894,-500.0,0.00030958,2]
[325295938,1714684276903,-500.0,0.00030958,2]
[325295939,1714684276912,-823.08,0.00030958,2]
[325295940,1714684276921,-500.0,0.00030958,2]
[325295941,1714684276930,-500.0,0.00030958,2]
[325295942,1714684276940,-500.0,0.00030958,2]
[325295943,1714684276949,-500.0,0.00030958,2]
[325295944,1714684276958,-500.0,0.00030958,2]
[325295945,1714684276968,-500.0,0.00030958,2]
[325295946,1714684276978,-533.04,0.00030958,2]
[325295947,1714684276988,-500.0,0.00030958,2]
[325295948,1714684276997,-540.03,0.00030958,2]
[325295949,1714684277006,-500.0,0.00030958,2]
[325295950,1714684277016,-500.0,0.00030958,2]
[325295951,1714684277026,-500.0,0.00030958,2]
[325295952,1714684277036,-500.0,0.00030958,2]
[325295953,1714684277046,-500.0,0.00030958,2]
[325295954,1714684277056,-500.0,0.00030958,2]
[325295955,1714684277065,-1155.82,0.00030958,2]
[325295956,1714684277075,-582.09,0.00030958,2]
[325295957,1714684277084,-891.56,0.00030958,2]
[325295958,1714684277094,-500.0,0.00030958,2]
[325295959,1714684277104,-1121.6,0.00030958,2]
[325295960,1714684277113,-267.30718558,0.00030958,2]
[325295961,1714684277126,-794.68,0.00030958,2]
[325295962,1714684277138,-500.0,0.00030958,2]
[325295963,1714684277148,-500.0,0.00030958,2]
[325295964,1714684277157,-854.77,0.00030958,2]
[325295965,1714684277169,-500.0,0.00030958,2]
[325295966,1714684277179,-500.0,0.00030958,2]
[325295967,1714684277189,-500.0,0.00030958,2]
[325295968,1714684277199,-500.0,0.00030958,2]
[325295969,1714684277209,-540.32,0.00030958,2]
[325295970,1714684277220,-500.0,0.00030958,2]
[325295971,1714684277230,-735.6,0.00030958,2]
[325295972,1714684277240,-1006.44,0.00030958,2]
[325295973,1714684277249,-639.66,0.00030958,2]
[325295974,1714684277259,-500.0,0.00030958,2]
[325295975,1714684277268,-500.0,0.00030958,2]
[325295976,1714684277278,-500.0,0.00030958,2]
[325295977,1714684277287,-500.0,0.00030958,2]
[325295978,1714684277298,-505.92068112,0.00030958,2]
[325295979,1714684277307,-706.53,0.00030958,2]
[325295980,1714684277317,-630.16,0.00030958,2]
[325295981,1714684277327,-500.0,0.00030958,2]
[325295982,1714684277337,-941.86,0.00030958,2]
[325295983,1714684277346,-500.0,0.00030958,2]
[325295984,1714684277356,-607.15,0.00030958,2]
[325295985,1714684277366,-500.0,0.00030958,2]
[325295986,1714684277376,-568.44921988,0.00030958,2]
[325295987,1714684277386,-500.0,0.00030958,2]